bitfinex/quotes_SOLUSD_20260108
["timestamp","ask_amount","ask_price","bid_price","bid_amount"]
[1767896939861,0.72043979,138.71,138.68,13.83574962]
[1767896940744,7.40897049,138.72,138.69,0.67574962]
[1767896941252,8.12941028,138.72,138.69,0.67574962]
[1767896941450,7.40897049,138.72,138.69,0.67574962]
[1767896941765,7.40897049,138.72,138.69,0.61574962]
[1767896943059,0.2,138.76,138.71,2.13499952]
[1767896943364,0.2,138.78,138.75,9.3419152]
[1767896943565,0.68892175,138.8,138.77,2.13499952]
[1767896943946,0.68892175,138.8,138.78,2.13499952]
[1767896944261,0.68892175,138.81,138.78,2.13499952]
[1767896944439,7.8930851,138.81,138.77,3.07932084]
[1767896944843,0.68892175,138.8,138.77,13.16]
[1767896946245,7.89379717,138.8,138.77,13.16]
[1767896946867,10.02879669,138.8,138.77,13.16]
[1767896947051,7.89379717,138.8,138.77,13.16]
[1767896947870,0.68892175,138.79,138.76,13.81999818]
[1767896948669,0.68892175,138.77,138.72,0.65999818]
[1767896948869,0.68892175,138.77,138.73,13.16]
[1767896949061,2.82392127,138.77,138.73,13.81999818]
[1767896949373,2.82392127,138.77,138.73,21.02815789]
[1767896951385,2.13499952,138.76,138.73,21.02815789]
[1767896952472,4.01691896,138.77,138.73,21.02815789]
[1767896954172,7.20593782,138.78,138.72,0.67756793]
[1767896954173,4.03509446,138.75,138.72,0.67756793]
[1767896954364,3.32799721,138.74,138.71,13.83756793]
[1767896954973,3.32799721,138.74,138.71,7.88675749]
[1767896956173,3.32799721,138.73,138.7,21.04717067]
[1767896958655,0.70709725,138.74,138.7,21.04717067]
[1767896958855,4.03509446,138.74,138.71,7.88684056]
[1767896959478,4.03509446,138.78,138.73,0.67756793]
[1767896959780,4.03509446,138.78,138.74,0.67756793]
[1767896959960,4.03509446,138.77,138.73,13.83756793]
[1767896960164,7.20530007,138.79,138.72,13.16]
[1767896960165,3.32799721,138.75,138.72,13.16]
[1767896960362,4.03509446,138.75,138.72,13.16]
[1767896960671,0.70709725,138.75,138.71,21.04684056]
[1767896960870,4.03509446,138.75,138.72,0.67756793]
[1767896961785,4.03509446,138.76,138.72,7.88621483]
[1767896962664,0.70709725,138.76,138.72,7.88621483]
[1767896962881,4.03509446,138.76,138.72,7.88621483]
[1767896967277,0.70709725,138.76,138.72,7.88621483]
[1767896967476,4.03509446,138.76,138.72,7.88621483]
[1767896968987,11.24201122,138.76,138.72,0.67756793]
[1767896969184,11.24201122,138.76,138.72,13.83756793]
[1767896969593,4.03509446,138.76,138.72,21.04624281]
[1767896975479,4.03509446,138.76,138.73,0.65363873]
[1767896975787,7.20590903,138.78,138.75,0.65363873]
[1767896975788,0.66154734,138.78,138.75,0.65363873]
[1767896976085,0.66154734,138.79,138.75,0.65363873]
[1767896976297,3.98954455,138.79,138.75,0.65363873]
[1767896976690,3.98954455,138.79,138.75,7.86082299]
[1767896976691,0.66154734,138.79,138.75,7.86082299]
[1767896976894,3.98954455,138.8,138.76,0.65363873]
[1767896977081,0.66154734,138.79,138.76,0.65363873]
[1767896977395,3.98954455,138.79,138.75,0.65363873]
[1767896977823,3.98954455,138.79,138.75,7.8608165]
[1767896982097,18.01022981,138.81,138.77,0.65363873]
[1767896982098,0.66154734,138.81,138.77,0.65363873]
[1767896982282,11.16199786,138.88,138.82,0.65363873]
[1767896982484,0.86154734,138.88,138.85,3.98163594]
[1767896982701,0.86154734,138.88,138.85,3.32799721]
[1767896982887,0.86154734,138.88,138.84,3.98163594]
[1767896983901,0.66154734,138.87,138.82,13.81363873]
[1767896984090,0.66154734,138.87,138.82,17.14163594]
[1767896984590,7.8626086,138.87,138.83,3.32799721]
[1767896984988,7.8626086,138.87,138.82,24.34516202]
[1767896985506,7.8626086,138.87,138.83,3.32799721]
[1767896986807,7.8626086,138.87,138.83,3.98163594]
[1767896988309,7.8626086,138.87,138.83,0.65363873]
[1767896988491,7.8626086,138.87,138.83,7.85644205]
[1767896988492,0.66154734,138.87,138.83,7.85644205]
[1767896988691,0.86154734,138.88,138.85,3.32799721]
[1767896989794,0.86154734,138.88,138.84,3.98163594]
[1767896990803,0.2,138.88,138.85,3.98163594]
[1767896991196,0.2,138.88,138.86,3.32799721]
[1767896991390,0.2,138.88,138.84,20.64642782]
[1767896991391,0.86154734,138.88,138.84,14.09796187]
[1767896991592,0.86154734,138.88,138.84,17.42595908]
[1767896991809,8.06206897,138.88,138.84,17.42595908]
[1767896992604,0.66154734,138.87,138.84,23.97476805]
[1767896994509,0.66154734,138.87,138.84,10.81476805]
[1767896994712,0.66154734,138.87,138.84,23.97476805]
[1767896995012,0.2,138.88,138.86,3.98163594]
[1767896996110,8.0620655,138.88,138.84,14.09796187]
[1767896996307,8.0620655,138.88,138.84,17.42595908]
[1767896997112,8.0620655,138.88,138.84,24.62847768]
[1767896997824,0.86154734,138.88,138.84,24.62847768]
[1767896997993,0.66154734,138.87,138.84,23.97483895]
[1767896998801,0.66154734,138.85,138.81,10.53176554]
[1767896998996,0.66154734,138.85,138.81,24.34540427]
[1767896999211,0.66154734,138.85,138.82,0.14216157]
[1767896999517,0.66154734,138.85,138.82,0.28432314]
[1767897000091,0.66154734,138.85,138.82,0.93796187]
[1767897000724,10.52915759,138.87,138.82,0.93796187]
[1767897000897,0.66154734,138.86,138.82,0.93796187]
[1767897001811,0.66154734,138.86,138.82,11.46950327]
[1767897002216,7.86312465,138.86,138.82,11.46950327]
[1767897002421,7.86312465,138.86,138.82,0.93796187]
[1767897002828,7.86312465,138.86,138.82,8.14152908]
[1767897003699,0.66154734,138.86,138.82,11.46952629]
[1767897003904,7.86314063,138.86,138.82,4.26595908]
[1767897004123,7.86314063,138.86,138.82,0.93796187]
[1767897004726,0.68139737,138.85,138.82,0.93796187]
[1767897004908,0.68139737,138.85,138.82,8.14141773]
[1767897005110,0.68139737,138.85,138.79,0.71440142]
[1767897005306,0.68139737,138.81,138.77,11.24840875]
[1767897006106,0.68634803,138.82,138.78,0.69856222]
[1767897006507,0.68634803,138.82,138.77,10.53400733]
[1767897006508,0.68634803,138.81,138.77,7.20601012]
[1767897006713,0.68634803,138.81,138.77,11.23256955]
[1767897007134,0.68634803,138.81,138.78,0.69856222]
[1767897007931,7.20315483,138.83,138.79,0.69856222]
[1767897008235,7.20315483,138.83,138.8,0.69856222]
[1767897008527,7.88950286,138.83,138.8,0.69856222]
[1767897008827,7.88950286,138.83,138.79,16.48799721]
[1767897009030,7.88950286,138.83,138.79,17.18655943]
[1767897009323,0.68634803,138.82,138.79,13.85856222]
[1767897010529,7.20315483,138.83,138.79,21.06358208]
[1767897010734,7.88950286,138.83,138.79,21.06358208]
[1767897011634,0.68634803,138.82,138.79,13.16]
[1767897011930,0.68634803,138.81,138.79,13.16]
[1767897012110,0.65634804,138.81,138.77,21.06449965]
[1767897012303,7.20201656,138.85,138.8,0.69856222]
[1767897012509,0.2,138.88,138.84,0.69856222]
[1767897012709,0.2,138.88,138.85,0.69856222]
[1767897013249,0.2,138.88,138.85,4.02655943]
[1767897013615,0.2,138.88,138.85,3.32799721]
[1767897013814,0.2,138.88,138.84,20.36241999]
[1767897014042,0.68634803,138.87,138.84,13.16]
[1767897014414,8.08687348,138.88,138.84,13.16]
[1767897014833,8.08687348,138.88,138.84,13.85856222]
[1767897019237,0.68634803,138.87,138.84,13.16]
[1767897019415,0.2,138.88,138.84,21.06105104]
[1767897019612,0.2,138.88,138.85,0.69856222]
[1767897020034,7.40049485,138.88,138.85,0.69856222]
[1767897020932,8.08684288,138.88,138.85,0.69856222]
[1767897021131,8.08684288,138.88,138.84,13.16]
[1767897021132,10.0138677,138.87,138.84,13.16]
[1767897022141,7.88754687,138.87,138.84,13.16]
[1767897022835,7.88754687,138.87,138.83,0.69856222]
[1767897023639,0.68634803,138.86,138.82,75.24]
[1767897023837,2.81266886,138.84,138.79,7.90348442]
[1767897024137,2.81266886,138.84,138.8,7.90305313]
[1767897024346,0.68634803,138.84,138.8,7.90305313]
[1767897024860,2.81266886,138.84,138.8,0.69856222]
[1767897025143,0.68634803,138.83,138.8,0.69856222]
[1767897025348,2.81266886,138.85,138.81,0.69856222]
[1767897025547,7.88847779,138.85,138.81,0.69856222]
[1767897025730,2.81266886,138.87,138.83,0.69856222]
[1767897026431,2.12632083,138.86,138.83,0.69856222]
[1767897026947,2.12632083,138.85,138.83,0.69856222]
[1767897028642,0.2,138.88,138.84,0.69856222]
[1767897028839,0.68634803,138.86,138.83,87.59494574]
[1767897029045,0.68634803,138.86,138.84,13.16]
[1767897029838,2.81266886,138.87,138.84,13.16]
[1767897030247,0.68634803,138.87,138.84,13.16]
[1767897030653,2.32632083,138.88,138.86,0.69856222]
[1767897030835,2.32632083,138.88,138.85,7.90057878]
[1767897031440,0.2,138.88,138.85,7.90057878]
[1767897031639,2.32632083,138.88,138.86,0.69856222]
[1767897032049,0.2,138.88,138.86,0.69856222]
[1767897032360,2.32632083,138.88,138.86,0.69856222]
[1767897032836,0.2,138.88,138.86,0.69856222]
[1767897033952,0.2,138.88,138.87,0.70788711]
[1767897034551,0.68801354,138.87,138.82,20.34307683]
[1767897034855,2.12632083,138.84,138.82,20.34307683]
[1767897035155,2.09632084,138.84,138.82,13.14]
[1767897035648,2.12632083,138.85,138.81,13.14]
[1767897036049,2.12632083,138.85,138.82,7.20338196]
[1767897036257,0.68801354,138.87,138.82,7.20338196]
[1767897036555,2.12632083,138.85,138.82,7.20338196]
[1767897036758,2.12632083,138.85,138.82,20.34338196]
[1767897036959,7.20137143,138.87,138.83,0.04279209]
[1767897037141,2.12632083,138.86,138.83,0.04279209]
[1767897037461,2.12632083,138.85,138.83,0.04279209]
[1767897037850,2.12632083,138.85,138.82,0.28432314]
[1767897038043,2.12632083,138.85,138.82,7.48774803]
[1767897038245,2.12632083,138.85,138.83,13.14]
[1767897038754,2.12632083,138.85,138.8,20.38709619]
[1767897038755,2.81433437,138.84,138.8,20.38709619]
[1767897038958,2.12632083,138.83,138.8,20.38709619]
[1767897039137,2.81433437,138.83,138.8,20.3443041]
[1767897039541,0.68801354,138.84,138.81,7.20408198]
[1767897039742,0.88801354,138.88,138.83,0.04279209]
[1767897039956,0.2,138.88,138.85,9.61221708]
[1767897040159,0.2,138.88,138.85,22.75221708]
[1767897042049,0.2,138.88,138.85,22.79500917]
[1767897042370,0.2,138.88,138.85,7.52868834]
[1767897042556,0.68801354,138.87,138.85,7.48589625]
[1767897042858,0.68801354,138.87,138.83,13.14]
[1767897042859,0.88801354,138.88,138.84,7.2023862]
[1767897043047,0.88801354,138.88,138.85,7.20193465]
[1767897043365,0.88801354,138.88,138.85,20.34193465]
[1767897044151,0.88801354,138.88,138.85,13.14]
[1767897045061,0.88801354,138.88,138.85,20.34198408]
[1767897045254,0.2,138.88,138.85,22.511097]
[1767897045646,0.2,138.88,138.86,2.12632083]
[1767897046371,0.2,138.88,138.86,9.32763097]
[1767897046746,0.2,138.88,138.86,7.20131014]
[1767897049661,0.2,138.89,138.86,7.20131014]
[1767897050854,0.2,138.89,138.87,13.14]
[1767897051672,0.2,138.89,138.87,20.3409112]
[1767897051970,0.68801354,138.88,138.87,20.3409112]
[1767897053446,0.68801354,138.88,138.87,13.14]
[1767897053651,0.68801354,138.88,138.87,10.87080563]
[1767897053963,2.12632083,138.88,138.85,69.30177889]
[1767897054265,2.12632083,138.87,138.85,62.1]
[1767897054568,2.22532083,138.88,138.85,62.1]
[1767897055151,2.70944423,138.87,138.85,62.1]
[1767897056052,2.12632083,138.88,138.85,62.1]
[1767897056572,2.22532083,138.88,138.85,62.1]
[1767897056776,0.5831234,138.87,138.85,62.1]
[1767897057274,0.5831234,138.87,138.85,7.20195098]
[1767897058175,0.78801354,138.89,138.85,7.90983809]
[1767897060279,0.2,138.89,138.86,0.70788711]
[1767897061170,0.2,138.89,138.87,0.70788711]
[1767897065779,0.2,138.89,138.87,7.90873143]
[1767897066376,2.32632083,138.89,138.85,0.67725622]
[1767897066576,2.12632083,138.86,138.83,62.77725622]
[1767897066876,2.12632083,138.86,138.84,7.87972374]
[1767897067397,2.22532083,138.87,138.84,7.20246752]
[1767897067981,13.92801354,138.89,138.85,0.67725622]
[1767897068180,13.92801354,138.89,138.87,0.67725622]
[1767897068181,0.2,138.89,138.87,0.67725622]
[1767897068365,0.2,138.89,138.87,8.16227078]
[1767897068684,0.2,138.89,138.85,18.0044484]
[1767897068685,2.70465141,138.88,138.85,7.20172152]
[1767897068881,0.78801354,138.89,138.86,7.2014802]
[1767897069187,0.2,138.89,138.86,7.2014802]
[1767897069560,0.2,138.89,138.87,7.20092211]
[1767897070960,0.2,138.89,138.86,7.2013797]
[1767897073174,1e-08,138.89,138.87,0.28432314]
[1767897073374,1e-08,138.89,138.87,0.67725622]
[1767897073675,0.58312341,138.89,138.86,6.98570284]
[1767897073887,2.70944424,138.89,138.85,7.87912793]
[1767897074084,0.10384123,138.88,138.85,7.20187171]
[1767897074684,2.23016206,138.88,138.85,7.20187171]
[1767897074888,0.10384123,138.88,138.85,7.20187171]
[1767897075193,1e-08,138.89,138.86,7.20146944]
[1767897075567,1e-08,138.89,138.87,0.67725622]
[1767897075880,1e-08,138.89,138.86,7.20146944]
[1767897076972,1e-08,138.89,138.86,7.87872566]
[1767897077789,0.09900001,138.89,138.86,7.20146944]
[1767897078189,1e-08,138.89,138.86,7.87872566]
[1767897078798,0.58312341,138.89,138.86,7.20146944]
[1767897079175,0.10384123,138.88,138.85,7.20198035]
[1767897079386,3.32123017,138.89,138.86,0.67725622]
[1767897080895,1e-08,138.89,138.86,0.67725622]
[1767897081197,1e-08,138.89,138.88,0.67725622]
[1767897081899,18.09413069,138.94,138.9,0.67725622]
[1767897081900,0.1,138.94,138.9,0.67725622]
[1767897082487,3.52606139,138.94,138.9,0.67725622]
[1767897082904,0.70371259,139.01,138.96,0.67725622]
[1767897083091,0.1,139.02,138.99,0.67725622]
[1767897083279,0.275,139.0,138.99,0.67725622]
[1767897083601,0.275,139.0,138.97,0.67725622]
[1767897083894,0.275,139.0,138.97,7.87301702]
[1767897084100,0.275,139.0,138.97,0.67725622]
[1767897085579,4.12494275,139.03,138.98,0.67725622]
[1767897085783,4.02494275,139.02,138.98,0.67725622]
[1767897085980,0.70371259,139.02,138.98,7.87244396]
[1767897086299,0.1,139.03,138.98,11.19353163]
[1767897086480,0.80371259,139.03,138.99,0.67725622]
[1767897086673,0.1,139.03,139.0,3.99848638]
[1767897087278,0.1,139.03,138.91,0.67725622]
[1767897087279,0.60371259,139.0,138.91,0.67725622]
[1767897087476,0.7033803,138.91,138.78,13.81569905]
[1767897087694,0.7033803,138.91,138.84,3.32123016]
[1767897087695,3.32123016,138.89,138.84,3.32123016]
[1767897087895,3.32123016,138.89,138.83,13.14]
[1767897087896,3.32123016,138.88,138.83,13.14]
[1767897088298,0.70371259,138.92,138.85,3.32123016]
[1767897088488,0.70371259,138.92,138.86,3.32123016]
[1767897088489,3.32123016,138.92,138.86,3.32123016]
[1767897088802,3.32123016,138.92,138.87,13.14]
[1767897089601,10.51961772,138.92,138.87,21.01812367]
[1767897089801,3.32123016,138.92,138.88,0.67725622]
[1767897090490,9.2499993,138.92,138.88,0.67725622]
[1767897090687,9.2499993,138.91,138.88,0.67725622]
[1767897091196,9.2499993,138.9,138.86,7.87861653]
[1767897091403,9.2499993,138.91,138.87,20.34094496]
[1767897091610,9.2499993,138.9,138.88,13.14]
[1767897092582,0.7033803,138.92,138.88,13.14]
[1767897092808,7.19683339,138.95,138.89,0.68636897]
[1767897093178,3.85687763,139.03,138.91,0.68636897]
[1767897093179,9.2499993,138.97,138.91,0.68636897]
[1767897093385,9.2499993,138.98,138.92,0.68636897]
[1767897093688,9.2499993,138.98,138.94,0.68636897]
[1767897095599,9.2499993,138.97,138.94,0.68636897]
[1767897097108,9.2499993,138.97,138.95,13.14]
[1767897097804,9.2499993,138.96,138.93,7.19777741]
[1767897098107,7.84852599,138.98,138.93,7.19777741]
[1767897098108,9.2499993,138.95,138.94,13.14]
[1767897098401,9.96980128,138.95,138.9,0.68636897]
[1767897098608,9.2499993,138.91,138.87,7.8873483]
[1767897098810,9.2499993,138.91,138.88,13.82636897]
[1767897099108,9.2499993,138.91,138.89,13.14]
[1767897099508,9.2499993,138.91,138.88,0.68636897]
[1767897099804,9.2499993,138.93,138.9,0.68636897]
[1767897100009,9.2499993,138.94,138.9,0.97069211]
[1767897100704,9.2499993,138.94,138.91,0.68636897]
[1767897100887,9.2499993,138.94,138.92,13.14]
[1767897101782,9.2499993,138.93,138.92,13.14]
[1767897102603,9.2499993,138.93,138.92,12.47949888]
[1767897103614,9.2499993,138.93,138.88,0.68636897]
[1767897103820,9.2499993,138.89,138.86,0.68636897]
[1767897104004,9.2499993,138.87,138.84,0.68636897]
[1767897104192,9.2499993,138.87,138.84,7.88860059]
[1767897104512,9.2499993,138.85,138.84,13.14]
[1767897104924,9.2499993,138.85,138.82,0.68636897]
[1767897105099,0.11904186,138.87,138.84,13.14]
[1767897105304,7.32002673,138.87,138.84,13.14]
[1767897105502,7.20098487,138.87,138.82,7.20347465]
[1767897105710,7.20098487,138.87,138.83,13.14]
[1767897106193,9.2499993,138.84,138.83,13.14]
[1767897107399,9.2499993,138.84,138.83,12.51953231]
[1767897108293,16.4526818,138.84,138.8,0.68636897]
[1767897108497,9.2499993,138.81,138.78,7.89191701]
[1767897108899,9.2499993,138.79,138.76,7.89278073]
[1767897109103,9.2499993,138.78,138.77,13.14]
[1767897109304,9.2499993,138.78,138.76,7.89278073]
[1767897109508,9.2499993,138.78,138.77,13.14]
[1767897109704,164.3,138.9,138.79,0.68636897]
[1767897109920,9.2499993,138.83,138.8,0.68636897]
[1767897110212,9.2499993,138.83,138.81,13.14]
[1767897111242,9.2499993,138.82,138.8,0.68636897]
[1767897111533,9.2499993,138.82,138.79,7.20469026]
[1767897111534,9.2499993,138.81,138.78,7.89185123]
[1767897111715,7.20227361,138.85,138.78,7.89185123]
[1767897111919,9.2499993,138.8,138.78,7.20548226]
[1767897112128,9.2499993,138.81,138.78,7.20548226]
[1767897112332,9.2499993,138.81,138.79,13.14]
[1767897112532,9.2499993,138.81,138.79,20.34509014]
[1767897112832,9.2499993,138.82,138.79,20.34509014]
[1767897113022,9.2499993,138.81,138.79,13.14]
[1767897113215,7.20266741,138.84,138.79,20.34506683]
[1767897113422,9.2499993,138.81,138.79,20.34506683]
[1767897113735,9.2499993,138.81,138.79,13.14]
[1767897113935,9.2499993,138.82,138.79,20.34502064]
[1767897114117,9.2499993,138.82,138.79,7.20502064]
[1767897114316,7.20266741,138.84,138.8,13.14]
[1767897114525,9.2499993,138.82,138.8,13.14]
[1767897115633,9.2499993,138.82,138.77,7.89232478]
[1767897115634,9.2499993,138.81,138.77,7.89232478]
[1767897115833,9.2499993,138.78,138.75,0.68636897]
[1767897116044,9.2499993,138.77,138.76,13.14]
[1767897116226,9.2499993,138.78,138.76,13.14]
[1767897116429,9.2499993,138.78,138.74,7.40734102]
[1767897116430,9.2499993,138.78,138.77,13.14]
[1767897116732,9.2499993,138.78,138.75,7.20710847]
[1767897116926,9.2499993,138.78,138.77,13.14]
[1767897117237,9.2499993,138.85,138.79,0.68636897]
[1767897117541,9.2499993,138.83,138.8,13.14]
[1767897117737,25.20228695,138.88,138.8,13.14]
[1767897117929,9.2499993,138.83,138.8,13.14]
[1767897118240,0.28432314,138.87,138.81,13.14]
[1767897118542,9.2499993,138.82,138.81,13.14]
[1767897119038,7.2029532,138.84,138.81,13.14]
[1767897119338,9.2499993,138.82,138.81,13.14]
[1767897119536,9.2499993,138.82,138.78,7.20548305]
[1767897119743,9.2499993,138.82,138.79,13.14]
[1767897122222,9.2499993,138.81,138.8,13.14]
[1767897122543,9.2499993,138.83,138.8,13.14]
[1767897123439,9.2499993,138.82,138.8,13.14]
[1767897124340,9.2499993,138.81,138.77,0.67613711]
[1767897124547,9.2499993,138.8,138.77,0.67613711]
[1767897124735,9.2499993,138.8,138.76,20.34636296]
[1767897124923,9.2499993,138.8,138.77,7.20613296]
[1767897125123,9.2499993,138.81,138.77,7.88227007]
[1767897125324,9.2499993,138.83,138.78,0.67613711]
[1767897125524,9.2499993,138.83,138.79,7.86547198]
[1767897125731,7.20242964,138.85,138.79,21.02547198]
[1767897125732,9.2499993,138.84,138.79,21.02547198]
[1767897126346,9.2499993,138.84,138.8,0.66034193]
[1767897126923,9.2499993,138.84,138.8,7.86485925]
[1767897128542,103.1,138.88,138.81,0.66034193]
[1767897128747,18.00058951,138.89,138.81,0.66034193]
[1767897128748,9.2499993,138.85,138.81,0.66034193]
[1767897129431,9.2499993,138.84,138.8,7.20451732]
[1767897129636,9.2499993,138.83,138.8,20.36451732]
[1767897130926,9.2499993,138.84,138.8,20.36451732]
[1767897131848,9.2499993,138.84,138.8,21.02485925]
[1767897132050,9.2499993,138.85,138.81,0.66034193]
[1767897132751,9.2499993,138.9,138.85,0.66034193]
[1767897132931,9.2499993,138.9,138.86,13.16]
[1767897133655,9.2499993,138.89,138.85,7.20152608]
[1767897134730,7.19930479,138.91,138.84,21.02265938]
[1767897134731,17.9980372,138.91,138.84,21.02265938]
[1767897134930,9.2499993,138.88,138.84,21.02265938]
[1767897135148,9.2499993,138.89,138.84,39.02899761]
[1767897135344,17.99529458,138.93,138.84,39.02899761]
[1767897135561,9.2499993,138.9,138.84,48.27899691]
[1767897135930,9.2499993,138.89,138.84,48.27899691]
[1767897136637,5.69457575,138.89,138.84,44.72357336]
[1767897137056,5.69457575,138.89,138.84,45.15587336]
[1767897137259,5.69457575,138.89,138.84,39.46129761]
[1767897137549,5.69457575,138.88,138.84,21.45495938]
[1767897137855,5.69457575,138.85,138.84,0.4323]
[1767897138729,5.69457575,138.82,138.74,0.86034193]
[1767897138933,5.69457575,138.79,138.74,0.86034193]
[1767897139236,5.69457575,138.78,138.74,8.06795661]
[1767897139643,5.69457575,138.79,138.75,7.20711561]
[1767897140050,5.69457575,138.78,138.75,7.20711561]
[1767897141233,7.20423727,138.81,138.75,7.86745754]
[1767897141452,5.69457575,138.8,138.75,7.86745754]
[1767897141658,5.69457575,138.8,138.76,0.66034193]
[1767897142652,5.69457575,138.8,138.77,7.86651041]
[1767897142939,5.69457575,138.8,138.77,7.20616848]
[1767897143834,5.69457575,138.78,138.75,7.20692876]
[1767897145647,5.69457575,138.79,138.75,7.86727069]
[1767897146561,7.20462141,138.8,138.75,7.86727069]
[1767897146562,5.69457575,138.8,138.75,7.86727069]
[1767897147560,5.69457575,138.8,138.76,0.66034193]
[1767897149168,12.89925174,138.8,138.76,7.86695592]
[1767897149666,5.69457575,138.79,138.76,7.86695592]
[1767897150763,5.69457575,138.79,138.76,0.66034193]
[1767897151156,5.69457575,138.79,138.75,7.20696196]
[1767897151358,7.20474907,138.8,138.75,7.20696196]
[1767897151553,7.20474907,138.8,138.74,14.02034193]
[1767897151554,5.69457575,138.77,138.74,13.36]
[1767897151755,5.69457575,138.76,138.74,0.2]
[1767897152580,5.69457575,138.77,138.74,0.2]
[1767897153173,5.69457575,138.75,138.74,0.2]
[1767897153352,5.69457575,138.75,138.73,0.2]
[1767897153353,12.90178295,138.75,138.73,0.2]
[1767897153547,12.90178295,138.75,138.68,0.90560109]
[1767897153548,5.69457575,138.74,138.68,21.27612483]
[1767897153854,5.69457575,138.72,138.68,21.27612483]
[1767897154254,5.69457575,138.73,138.69,0.70560109]
[1767897154555,5.69457575,138.73,138.68,25.43763651]
[1767897154758,25.22522521,138.75,138.68,0.2]
[1767897155056,5.69457575,138.71,138.68,0.2]
[1767897155280,5.66457576,138.71,138.68,0.2]
[1767897155451,7.2088093,138.72,138.68,0.2]
[1767897155653,5.69457575,138.72,138.68,8.11624413]
[1767897157172,5.66457576,138.72,138.68,8.11624413]
[1767897157482,5.69457575,138.72,138.68,8.11624413]
[1767897157653,5.69457575,138.71,138.68,0.90560109]
[1767897157853,5.69457575,138.71,138.68,0.2]
[1767897158074,5.69457575,138.69,138.64,0.70560109]
[1767897158260,5.69457575,138.67,138.64,0.70560109]
[1767897158583,5.69457575,138.66,138.62,21.07938678]
[1767897158965,5.69457575,138.66,138.62,7.21378569]
[1767897159176,5.69457575,138.66,138.63,0.70560109]
[1767897159357,12.90601993,138.67,138.63,0.70560109]
[1767897159551,5.69457575,138.67,138.63,0.70560109]
[1767897159976,5.69457575,138.66,138.63,0.70560109]
[1767897161675,7.21099499,138.68,138.64,0.70560109]
[1767897161864,5.69457575,138.67,138.64,0.70560109]
[1767897162567,5.69457575,138.67,138.63,7.21333276]
[1767897162879,5.69457575,138.67,138.64,0.70560109]
[1767897163376,12.90595248,138.67,138.64,0.70560109]
[1767897164055,5.69457575,138.65,138.61,0.2]
[1767897164275,5.69457575,138.65,138.62,0.70560109]
[1767897165459,12.90707148,138.65,138.62,0.70560109]
[1767897166580,5.69457575,138.64,138.62,0.70560109]
[1767897167083,7.21041808,138.69,138.64,0.70560109]
[1767897167389,5.69457575,138.68,138.64,0.70560109]
[1767897168680,5.69457575,138.68,138.65,0.70560109]
[1767897168994,7.21002934,138.7,138.65,0.70560109]
[1767897169156,12.90460509,138.7,138.65,0.70560109]
[1767897169359,5.69457575,138.69,138.65,0.70560109]
[1767897169786,12.90460509,138.7,138.65,0.70560109]
[1767897170273,12.90460509,138.7,138.66,0.70560109]
[1767897170478,5.69457575,138.69,138.66,0.70560109]
[1767897172378,7.21002934,138.7,138.66,0.70560109]
[1767897172580,5.69457575,138.69,138.66,0.70560109]
[1767897173760,12.90460509,138.7,138.66,0.70560109]
[1767897173959,5.69457575,138.7,138.66,7.91744628]
[1767897174363,12.90440464,138.7,138.67,0.70560109]
[1767897175384,7.20940729,138.71,138.67,0.70560109]
[1767897175589,12.90398304,138.71,138.67,0.70560109]
[1767897177490,13.60834323,138.71,138.67,0.70560109]
[1767897179379,5.69457575,138.7,138.67,0.70560109]
[1767897179787,13.60834323,138.71,138.67,0.70560109]
[1767897180506,9.34108822,138.71,138.67,0.70560109]
[1767897180994,7.20899371,138.72,138.68,0.70560109]
[1767897181173,2.13168093,138.71,138.68,0.70560109]
[1767897181772,13.16,138.73,138.68,0.70560109]
[1767897181987,15.29168093,138.73,138.68,0.70560109]
[1767897182799,15.29168093,138.73,138.69,7.89417131]
[1767897183091,22.49994382,138.73,138.69,0.68384613]
[1767897184698,22.49994382,138.73,138.69,7.89407327]
[1767897185285,2.13168093,138.72,138.69,0.68384613]
[1767897186604,7.87594447,138.73,138.69,0.68384613]
[1767897186907,2.13168093,138.72,138.69,0.68384613]
[1767897187103,10.0076254,138.73,138.69,0.68384613]
[1767897187420,7.36400812,138.73,138.69,0.68384613]
[1767897187790,9.49568905,138.73,138.69,0.68384613]
[1767897189113,7.36400812,138.73,138.69,7.89409817]
[1767897189410,9.49568905,138.73,138.69,7.89409817]
[1767897190597,9.49568905,138.73,138.69,0.68384613]
[1767897191397,7.36400812,138.73,138.69,0.68384613]
[1767897191701,9.49568905,138.73,138.69,0.68384613]
[1767897193211,9.49568905,138.73,138.69,7.89413858]
[1767897194213,10.00731542,138.74,138.7,0.69285893]
[1767897195213,9.49587512,138.73,138.69,7.21029245]
[1767897195411,0.16578071,138.69,138.65,7.9049522]
[1767897195620,2.29746164,138.69,138.65,0.69285893]
[1767897195912,2.13168093,138.68,138.65,0.69285893]